bitfinex-derivatives/quotes_ETHF0:USTF0_20251213
["timestamp","ask_amount","ask_price","bid_price","bid_amount"]
[1765616699518,3.2078,3117.6,3117.5,1.9189]
[1765616700329,3.2078,3117.6,3117.5,3.13536108]
[1765616705336,3.2078,3117.6,3117.5,0.62037]
[1765616705639,3.2078,3117.6,3117.5,0.16037]
[1765616705839,3.2078,3117.6,3117.2,0.00481688]
[1765616706046,1.05609108,3117.3,3117.2,0.00481688]
[1765616708445,1.05609108,3117.5,3117.2,0.00481688]
[1765616708650,1.05609108,3117.5,3117.2,0.76701688]
[1765616709249,3.2078,3117.6,3117.2,0.76701688]
[1765616709250,1.05629844,3117.4,3117.2,0.76701688]
[1765616709449,1.05629844,3117.4,3117.2,1.46371688]
[1765616709748,4.26409844,3117.6,3117.5,0.46]
[1765616710348,3.2078,3117.6,3117.5,1.2222]
[1765616710749,3.2078,3117.6,3117.5,0.46]
[1765616711350,4.26409844,3117.6,3117.5,0.46]
[1765616717654,3.2078,3117.6,3117.5,0.46]
[1765616718057,3.2078,3117.6,3117.5,1.9189]
[1765616718658,3.2078,3117.6,3117.5,1.2222]
[1765616719065,3.2078,3117.6,3117.5,0.46]
[1765616722260,1.05629844,3117.7,3117.5,0.46]
[1765616722559,3.2078,3117.6,3117.5,0.46]
[1765616722752,3.2078,3117.6,3117.5,1.1789]
[1765616723559,3.2078,3117.6,3117.5,1.9034]
[1765616724561,3.2078,3117.6,3117.5,2.06377]
[1765616725162,3.2078,3117.6,3117.5,3.12006844]
[1765616726155,3.2078,3117.6,3117.5,2.06377]
[1765616726460,3.2078,3117.6,3117.5,3.12006844]
[1765616731369,1.05629844,3118.1,3118.0,0.4419]
[1765616731567,4.26409844,3118.1,3118.0,0.4419]
[1765616732162,3.2078,3118.1,3118.0,0.4419]
[1765616732463,3.2078,3118.1,3118.0,1.9627]
[1765616732664,3.2078,3118.1,3118.0,1.2088]
[1765616733167,3.2078,3118.1,3118.0,0.4419]
[1765616734970,3.2078,3118.1,3117.9,0.16035]
[1765616735166,1.05629844,3118.0,3117.9,0.16035]
[1765616735967,1.05629844,3118.0,3117.5,0.46]
[1765616736166,4.26409844,3117.6,3117.5,0.46]
[1765616744374,3.2078,3117.6,3117.5,1.9808]
[1765616750880,3.2078,3117.6,3117.5,2.14117]
[1765616752381,3.2078,3117.6,3117.5,1.38727]
[1765616753078,3.2078,3117.6,3117.5,2.14117]
[1765616762499,3.2078,3117.6,3117.5,2.09787]
[1765616765501,3.2078,3117.6,3117.5,1.34397]
[1765616766197,3.2078,3117.6,3117.5,2.08887]
[1765616768194,0.742,3118.2,3118.1,1.66833]
[1765616768399,3.2078,3118.3,3118.2,1.66833]
[1765616769801,3.2078,3118.3,3118.2,42.46833]
[1765616770796,4.69453968,3118.7,3118.6,1.508]
[1765616771393,4.69453968,3118.7,3118.6,0.7631]
[1765616772099,4.69453968,3118.7,3118.6,1.508]
[1765616774103,4.69453968,3118.7,3118.6,0.7631]
[1765616774497,4.69453968,3118.7,3118.6,1.66831]
[1765616775804,1.48673968,3118.7,3118.6,1.66831]
[1765616777103,1.48673968,3118.7,3118.6,0.92341]
[1765616777400,1.48673968,3118.7,3118.6,1.66831]
[1765616779204,1.48673968,3118.7,3118.6,0.92341]
[1765616780805,1.48673968,3118.7,3118.6,1.66831]
[1765616781001,0.74533968,3118.7,3118.6,1.66831]
[1765616781209,0.00333968,3118.7,3118.6,1.66831]
[1765616781606,0.00333968,3118.7,3118.6,2.72355909]
[1765616784213,0.7736,3119.0,3118.9,1.66039]
[1765616785104,0.77748387,3119.0,3118.9,1.66039]
[1765616786011,0.00388387,3119.0,3118.9,1.66039]
[1765616786412,0.71108387,3119.0,3118.9,1.66039]
[1765616788411,1.41228387,3119.0,3118.9,0.91799]
[1765616788806,1.41228387,3119.0,3118.9,1.63319]
[1765616790009,1.41228387,3119.0,3118.9,1.58819]
[1765616791100,0.00388387,3119.0,3118.9,1.58819]
[1765616791906,1.41228387,3119.0,3118.9,1.58819]
[1765616792106,1.41228387,3119.0,3118.9,0.87299]
[1765616792412,1.83128387,3119.0,3118.9,0.87299]
[1765616792612,1.83128387,3119.0,3118.9,1.58819]
[1765616795208,1.83128387,3119.0,3118.9,0.87299]
[1765616795403,1.83128387,3119.0,3118.9,0.16029]
[1765616796604,1.83128387,3119.0,3118.9,0.89069]
[1765616797516,1.83128387,3119.0,3118.9,0.16029]
[1765616799119,1.83128387,3119.0,3118.9,0.89069]
[1765616804323,1.83128387,3119.0,3118.9,1.60589]
[1765616807124,1.83128387,3119.0,3118.9,0.89069]
[1765616807524,1.83128387,3119.0,3118.9,0.16029]
[1765616808225,1.83128387,3119.0,3118.9,0.89069]
[1765616810225,1.83128387,3119.0,3118.9,0.16029]
[1765616810734,1.83128387,3119.0,3118.9,0.89069]
[1765616813931,1.83128387,3119.0,3118.9,1.60589]
[1765616815128,1.41228387,3119.0,3118.9,1.60589]
[1765616817233,0.71108387,3119.0,3118.9,1.60589]
[1765616817932,0.71108387,3119.0,3118.9,2.66086378]
[1765616818837,1.43958387,3119.0,3118.9,2.66086378]
[1765616820739,0.71108387,3119.0,3118.9,2.66086378]
[1765616821342,1.86608387,3119.0,3118.9,0.89069]
[1765616821534,1.86608387,3119.0,3118.9,0.91839]
[1765616823634,1.86608387,3119.0,3118.9,0.16029]
[1765616823829,2.92105765,3119.0,3118.9,0.16029]
[1765616824543,1.4688,3118.4,3118.3,0.91843]
[1765616825042,1.4688,3118.4,3118.3,2.74650378]
[1765616827546,1.4688,3118.4,3118.3,1.97340378]
[1765616828444,1.4688,3118.4,3118.3,0.16033]
[1765616829452,2.52377378,3118.4,3118.3,0.16033]
[1765616829743,1.4688,3118.3,3118.2,3.2078]
[1765616830746,1.4688,3117.9,3117.8,1.05497378]
[1765616832052,1.4688,3117.9,3117.8,1.21532378]
[1765616832250,1.4688,3117.9,3117.8,1.97342378]
[1765616832551,1.4688,3117.9,3117.8,2.74652378]
[1765616841660,1.4688,3117.9,3117.8,0.91845]
[1765616842059,1.4688,3117.9,3117.8,1.63565]
[1765616842861,1.4688,3117.9,3117.8,0.16035]
[1765616844062,1.4688,3117.9,3117.8,0.88755]
[1765616846461,1.4688,3117.9,3117.8,0.16035]
[1765616848469,2.52377378,3117.9,3117.8,0.16035]
[1765616850069,3.2078,3118.2,3118.1,1.4648]
[1765616850070,4.6722,3118.2,3118.1,1.4648]
[1765616850979,4.6722,3118.2,3118.1,0.7634]
[1765616851566,1.4644,3118.1,3118.0,1.81837378]
[1765616852380,1.4644,3118.1,3118.0,0.7634]
[1765616852878,1.4644,3118.1,3118.0,1.4648]
[1765616855370,1.8909,3118.5,3118.4,1.4648]
[1765616855677,1.4644,3118.5,3118.4,1.4648]
[1765616860782,1.9004,3118.5,3118.4,0.7634]
[1765616860979,1.9004,3118.5,3118.2,1.62513]
[1765616860980,1.4644,3118.3,3118.2,1.62513]
[1765616864586,1.4644,3118.3,3118.2,0.92373]
[1765616865285,1.4644,3118.3,3118.2,1.62513]
[1765616866681,1.4644,3117.7,3117.6,2.52045416]
[1765616866881,1.4644,3117.7,3117.6,2.68081416]
[1765616867079,0.767,3117.7,3117.6,43.48081416]
[1765616867277,1.4644,3118.2,3118.1,1.62514]
[1765616867583,0.767,3118.3,3118.2,1.62513]
[1765616867785,1.4644,3118.5,3118.4,1.4648]
[1765616867986,1.4644,3118.5,3118.4,2.52045416]
[1765616869889,1.9004,3118.5,3118.4,0.7634]
[1765616870490,1.4644,3118.3,3118.2,1.62513]
[1765616872693,1.4644,3118.3,3118.2,2.68078416]
[1765616873792,1.4644,3118.3,3118.2,0.16033]
[1765616873996,4.6722,3118.3,3118.2,0.16033]
[1765616874196,1.4644,3118.3,3118.2,0.92373]
[1765616876291,1.4644,3118.3,3118.2,0.16033]
[1765616876497,1.8872,3118.0,3117.9,3.2078]
[1765616877195,1.8872,3118.0,3117.9,3.9447]
[1765616877898,1.8872,3118.0,3117.9,4.6936]
[1765616878291,1.8872,3118.0,3117.9,3.9447]
[1765616878489,1.8872,3118.0,3117.9,3.2078]
[1765616880392,1.8872,3118.0,3117.9,4.6936]
[1765616880593,1.4501,3118.0,3117.9,4.6936]
[1765616881601,1.4501,3118.0,3117.9,1.4858]
[1765616885702,0.7298,3118.0,3117.9,1.4858]
[1765616886601,1.4501,3118.0,3117.9,1.4858]
[1765616890493,4.6579,3118.3,3118.2,0.7369]
[1765616891114,4.6579,3118.3,3118.2,1.4858]
[1765616896007,4.6579,3118.3,3118.2,1.64613]
[1765616896205,3.2078,3118.3,3118.2,1.64613]
[1765616901914,3.9368,3118.3,3118.2,1.64613]
[1765616902115,3.2078,3118.3,3118.2,1.64613]
[1765616904723,3.2078,3118.6,3118.2,1.64613]
[1765616904922,4.7009,3118.6,3118.5,0.7133]
[1765616905425,4.7009,3118.6,3118.5,1.4501]
[1765616910435,1.5191,3118.4,3118.3,1.59622]
[1765616910825,1.5191,3118.4,3118.3,0.16032]
[1765616911526,1.5191,3118.4,3118.3,0.85942]
[1765616911734,1.5191,3118.4,3118.3,1.59622]
[1765616913234,0.755,3118.4,3118.3,1.59622]
[1765616914736,4.7269,3118.6,3118.5,1.4359]
[1765616917734,4.7269,3118.6,3118.5,0.6991]
[1765616918741,4.7269,3118.6,3118.5,1.4359]
[1765616919432,4.7269,3118.6,3118.5,0.6991]
[1765616921642,4.7269,3118.6,3118.5,1.4359]
[1765616922838,4.7269,3118.6,3118.5,0.6991]
[1765616923844,4.7269,3118.6,3118.5,1.4359]
[1765616926035,4.7269,3118.6,3118.5,0.6991]
[1765616930849,1.5191,3118.6,3118.5,1.59622]
[1765616937656,1.5191,3118.6,3118.5,2.02152]
[1765616938158,0.755,3118.6,3118.5,2.02152]
[1765616939052,1.519,3118.6,3118.5,2.02152]
[1765616940662,0.755,3118.6,3118.5,2.02152]
[1765616940853,0.43038387,3119.0,3118.6,0.16031]
[1765616941055,1.4619,3118.7,3118.6,1.59091]
[1765616942760,1.4619,3118.7,3118.6,0.85991]
[1765616947356,1.4619,3118.7,3118.6,0.16031]
[1765616947963,4.6697,3118.7,3118.6,0.16031]
[1765616948758,4.6697,3118.7,3118.6,0.85991]
[1765616951659,1.89228387,3119.0,3118.9,1.4306]
[1765616951863,1.46578387,3119.0,3118.9,2.4858728]
[1765616955169,0.70178387,3119.0,3118.9,2.6461728]
[1765616959364,0.00388387,3119.0,3118.9,2.6461728]
[1765616960475,0.00388387,3119.0,3118.9,2.64582148]
[1765616974689,4.6757,3119.6,3119.5,1.461]
[1765616974891,4.6757,3119.6,3119.5,2.95952148]
[1765616975586,4.67851641,3119.6,3119.5,3.1224921]
[1765616977186,1.47071641,3119.6,3119.5,3.1224921]
[1765616977393,1.47071641,3119.6,3119.5,3.38158888]
[1765616977593,1.47071641,3119.6,3119.5,3.1224921]
[1765616977789,0.74891641,3119.6,3119.5,3.1224921]
[1765616979890,1.47071641,3119.6,3119.5,3.1224921]
[1765616980582,0.74891641,3119.6,3119.5,3.1224921]
[1765616980793,1.47071641,3119.6,3119.5,3.1224921]
[1765616981797,1.47071641,3119.6,3119.5,0.16297062]
[1765616982496,1.47071641,3119.6,3119.5,0.88157062]
[1765616983099,0.00281641,3119.6,3119.5,2.06757062]
[1765616983594,0.74891641,3119.6,3119.5,2.06757062]
[1765616983798,0.00281641,3119.6,3119.5,2.06757062]
[1765616985701,0.00281641,3119.6,3119.5,3.1224921]
[1765616988395,3.2078,3119.9,3119.8,1.62125]
[1765616988602,3.2078,3119.9,3119.8,2.67617148]
[1765616989501,3.21157644,3119.9,3119.8,2.67617148]
[1765616989702,3.95767644,3119.9,3119.8,2.67617148]
[1765616990296,4.67947644,3119.9,3119.8,2.67617148]
[1765616990701,3.95767644,3119.9,3119.8,2.67617148]
[1765616990901,4.67947644,3119.9,3119.8,2.67617148]
[1765616991202,4.67947644,3119.9,3119.8,0.16025]
[1765616992501,4.67947644,3119.9,3119.8,0.87885]
[1765616993601,4.67947644,3119.9,3119.8,1.62125]
[1765616993807,4.67947644,3119.9,3119.8,0.16025]
[1765616994302,4.67947644,3119.9,3119.8,0.87885]
[1765616994803,4.67947644,3119.9,3119.8,0.16025]
[1765616997602,4.67947644,3119.9,3119.8,1.62925]
[1765616997806,4.67947644,3119.9,3119.8,2.68359428]
[1765616998504,4.67947644,3119.9,3119.8,0.16025]
[1765617002508,4.67947644,3119.9,3119.8,0.15743359]
[1765617003899,1.4854,3119.3,3119.2,0.00480908]
[1765617004206,4.6932,3119.3,3119.2,0.00480908]
[1765617004809,4.6932,3119.3,3119.2,0.00760338]
[1765617012116,4.6932,3119.3,3119.2,0.76650338]
[1765617012413,4.6932,3119.3,3119.2,1.47660338]
[1765617018618,4.6932,3119.3,3119.2,0.00760338]
[1765617019219,4.6932,3119.3,3119.2,0.76650338]
[1765617020020,4.6932,3119.3,3119.2,0.00760338]
[1765617020222,4.6932,3119.3,3119.2,0.76650338]
[1765617020522,4.6932,3119.3,3119.2,1.47660338]
[1765617020722,1.4367,3119.4,3119.3,1.64417]
[1765617020923,1.4367,3119.4,3119.3,0.16027]
[1765617031637,1.4759,3119.3,3119.2,0.00760338]
[1765617031934,4.6837,3119.3,3119.2,0.00760338]
[1765617033029,1.4759,3118.7,3118.6,0.16031]
[1765617033236,4.6837,3118.7,3118.6,0.16031]
[1765617034028,4.6837,3118.7,3118.6,0.16429797]
[1765617040343,4.6837,3118.7,3118.6,0.93389797]
[1765617040541,4.6837,3118.7,3118.6,1.66549797]
[1765617043945,4.6837,3118.7,3118.6,0.16429797]
[1765617049951,1.4759,3118.7,3118.6,0.16429797]
[1765617050255,4.6837,3118.7,3118.6,0.16429797]
[1765617056559,5.73903954,3118.7,3118.6,0.16429797]
[1765617061764,4.6837,3118.7,3118.6,0.16429797]
[1765617062870,4.6837,3118.7,3118.6,0.91939797]
[1765617063663,4.6837,3118.7,3118.6,0.16429797]
[1765617065965,5.73927686,3118.7,3118.6,0.16429797]
[1765617069877,5.73919334,3118.7,3118.6,0.16429797]
[1765617072074,4.6837,3118.7,3118.6,0.16429797]
[1765617072877,4.6837,3118.7,3118.6,1.66699797]
[1765617073085,4.6837,3118.7,3118.6,2.72249131]
[1765617073574,4.6837,3118.7,3118.6,0.91939797]
[1765617078982,4.6837,3118.7,3118.6,2.72249131]
[1765617080285,3.9309,3118.7,3118.6,2.72249131]
[1765617080585,4.6861,3118.7,3118.6,2.72249131]
[1765617082385,3.2078,3118.7,3118.6,2.72249131]
[1765617083585,1.47298309,3119.0,3118.9,1.474]
[1765617084382,0.71778309,3119.0,3118.9,1.474]
[1765617084782,1.47298309,3119.0,3118.9,1.474]
[1765617088190,1.89998309,3119.0,3118.9,0.7493]
[1765617088385,1.89998309,3119.0,3118.9,1.4734]
[1765617089192,1.47298309,3119.0,3118.9,1.4734]
[1765617089893,1.47298309,3119.0,3118.9,1.6337]
[1765617093292,3.2078,3119.5,3119.4,1.4449]
[1765617093497,3.2078,3119.5,3119.4,2.50039334]
[1765617093694,3.9645,3119.5,3119.4,2.50039334]
[1765617094885,3.2078,3119.5,3119.4,2.50039334]
[1765617095989,3.9645,3119.5,3119.4,2.50039334]
[1765617096896,3.2078,3119.5,3119.4,2.66066334]
[1765617100302,0.7567,3119.6,3119.5,2.06656]
[1765617100502,0.7567,3119.6,3119.5,3.12205334]
[1765617103001,4.67247644,3119.9,3119.8,0.7208]
[1765617103806,4.67247644,3119.9,3119.8,1.77629334]
[1765617104007,4.67247644,3119.9,3119.8,0.7208]
[1765617104204,4.67247644,3119.9,3119.8,1.77629334]
[1765617105318,4.67247644,3119.9,3119.8,1.77524716]
[1765617105500,4.67247644,3119.9,3119.8,2.49934716]
[1765617105704,3.96827644,3119.9,3119.8,2.65959716]
[1765617106008,3.21157644,3119.9,3119.8,2.65959716]
[1765617106210,3.96827644,3119.9,3119.8,2.65959716]
[1765617106804,4.67247644,3119.9,3119.8,2.65959716]
[1765617108210,4.67247644,3119.9,3119.8,1.60515]
[1765617108409,4.67247644,3119.9,3119.8,2.65959716]
[1765617108610,3.21157644,3119.9,3119.8,2.65959716]
[1765617108811,3.96827644,3119.9,3119.8,2.65959716]
[1765617110719,3.21157644,3119.9,3119.8,2.65959716]
[1765617111017,0.76047644,3119.9,3119.8,2.65959716]
[1765617112120,0.00377644,3119.9,3119.8,2.65959716]
[1765617114224,0.00377644,3119.9,3119.8,3.71404432]
[1765617114830,0.00377644,3119.9,3119.8,2.65959716]
[1765617115529,1.47127644,3119.9,3119.8,1.98389716]
[1765617118728,1.47127644,3119.9,3119.8,0.16025]
[1765617119033,1.47127644,3119.9,3119.8,1.98389716]
[1765617119734,1.47127644,3119.9,3119.8,1.21469716]
[1765617120138,1.47127644,3119.9,3119.8,2.75059716]
[1765617122436,0.76047644,3119.9,3119.8,2.75059716]
[1765617123634,0.00377644,3119.9,3119.8,2.75059716]
[1765617123833,1.41287644,3119.9,3119.8,2.75059716]
[1765617124236,1.41287644,3119.9,3119.8,1.21469716]
[1765617124828,1.41287644,3119.9,3119.8,1.98389716]
[1765617125032,1.41287644,3119.9,3119.8,2.75059716]
[1765617125935,1.41287644,3119.9,3119.8,2.75041489]
[1765617127036,0.70207644,3119.9,3119.8,2.75041489]
[1765617129638,1.41287644,3119.9,3119.8,2.75041489]
[1765617131243,0.70207644,3119.9,3119.8,2.75041489]
[1765617140841,0.70207644,3119.9,3119.8,2.75037061]
[1765617143745,0.00377644,3119.9,3119.8,2.75037061]
[1765617146545,0.72247644,3119.9,3119.8,2.75037061]
[1765617146743,1.42157644,3119.9,3119.8,2.75037061]
[1765617147145,0.72247644,3119.9,3119.8,2.75037061]
[1765617147741,0.72247644,3119.9,3119.8,1.69615]
[1765617147952,1.42157644,3119.9,3119.8,2.75037061]
[1765617148249,0.00377644,3119.9,3119.8,2.75037061]
[1765617149738,1.42157644,3119.9,3119.8,0.16025]
[1765617162152,1.42157644,3119.9,3119.8,0.87135]
[1765617164054,1.42157644,3119.9,3119.8,1.59145]
[1765617165851,0.72247644,3119.9,3119.8,1.59145]
[1765617166051,0.00377644,3119.9,3119.8,1.59145]
[1765617166748,0.72247644,3119.9,3119.8,1.59145]
[1765617166954,1.42157644,3119.9,3119.8,1.59145]
[1765617167250,0.00377644,3119.9,3119.8,1.59145]
[1765617167658,0.72247644,3119.9,3119.8,1.59145]
[1765617168454,1.42157644,3119.9,3119.8,2.64567061]
[1765617170153,1.42157644,3119.9,3119.8,1.59145]
[1765617170456,1.42157644,3119.9,3119.8,2.64567061]
[1765617172956,0.72247644,3119.9,3119.8,2.64567061]
[1765617175558,0.00377644,3119.9,3119.8,2.64567061]
[1765617175760,1.47307644,3119.9,3119.8,2.64567061]
[1765617176258,1.47307644,3119.9,3119.8,2.64563562]
[1765617176955,0.70557644,3119.9,3119.8,2.64563562]
[1765617179161,0.00377644,3119.9,3119.8,2.64563562]
[1765617182654,0.70557644,3119.9,3119.8,2.64563562]
[1765617182963,0.00377644,3119.9,3119.8,2.64563562]
[1765617185853,3.2078,3120.8,3120.7,1.4818]
[1765617186050,0.4535,3122.0,3121.9,1.64194]
[1765617186051,3.2078,3122.0,3121.9,1.64194]
[1765617186251,0.4603,3122.5,3122.3,1.4818]
[1765617186252,1.4693,3122.4,3122.3,1.4818]
[1765617186452,1.4693,3121.9,3121.8,3.2078]
[1765617186658,1.4693,3121.8,3121.7,2.53598562]
[1765617186963,0.00415915,3121.8,3121.7,2.53943873]
[1765617187161,0.00415915,3121.8,3121.7,2.69958873]
[1765617187864,0.00415915,3121.8,3121.7,2.69820443]
[1765617188464,0.70595915,3121.8,3121.7,2.69820443]
[1765617188660,0.00415915,3121.8,3121.7,2.69820443]
[1765617189053,1.47345915,3121.8,3121.7,0.16360311]
[1765617189253,1.47345915,3121.8,3121.7,1.21640443]
[1765617189654,1.47345915,3121.8,3121.7,0.16360311]
[1765617189859,7.47345915,3121.8,3121.7,0.16360311]
[1765617191565,1.47345915,3121.8,3121.7,2.69820443]
[1765617192269,1.47345915,3121.8,3121.7,1.97010443]
[1765617192469,1.47345915,3121.8,3121.7,0.16360311]
[1765617192868,2.52626047,3121.8,3121.7,0.16360311]
[1765617193070,2.52626047,3121.8,3121.7,0.00345311]
[1765617195874,0.70595915,3121.8,3121.7,2.53805443]
[1765617196273,1.47345915,3121.8,3121.7,2.53805443]
[1765617200983,1.47345915,3121.8,3121.7,0.75715311]
[1765617201181,1.47345915,3121.8,3121.7,0.00345311]
[1765617201382,1.8984,3121.5,3121.4,0.00480908]
[1765617201684,2.95120132,3121.5,3121.4,0.00480908]
[1765617202072,1.8984,3121.5,3121.4,0.00480908]
[1765617202275,2.95120132,3121.5,3121.4,0.00480908]
[1765617202474,2.95120132,3121.5,3121.4,0.00863343]
[1765617203578,2.95120132,3121.5,3121.4,0.00382435]
[1765617203780,1.8984,3121.0,3120.9,3.2078]
[1765617203978,2.95120132,3121.0,3120.9,3.2078]
[1765617204581,7.49000132,3121.0,3120.3,3.2078]
[1765617204784,3.2078,3121.1,3120.9,0.00315058]
[1765617204987,1.05280132,3121.0,3120.9,0.00315058]
[1765617205687,7.05280132,3121.0,3120.9,0.00315058]
[1765617208687,1.05280132,3121.0,3120.9,0.00315058]
[1765617210081,1.05280132,3121.0,3120.6,0.00480908]
[1765617210082,1.05280132,3121.0,3120.5,0.4277]
[1765617210386,1.05280132,3120.6,3120.5,0.4277]
[1765617210784,5.31340264,3120.6,3120.0,1.9178]
[1765617210983,1.05280132,3120.1,3120.0,1.19792685]
[1765617211184,1.05280132,3120.1,3120.0,1.92633593]
[1765617212078,1.05446442,3120.2,3120.0,1.92633593]
[1765617213889,1.05446442,3120.2,3120.1,1.4778]
[1765617217492,1.0592735,3120.4,3120.3,1.4778]
[1765617217795,0.00480908,3120.4,3120.3,1.4778]
[1765617218893,1.0592735,3120.4,3120.3,1.4778]
[1765617221199,0.00480908,3120.4,3120.3,1.4778]
[1765617224304,1.0592735,3120.4,3120.3,1.4778]
[1765617224607,1.0592735,3120.4,3120.3,0.7542]
[1765617226611,1.0592735,3120.4,3120.0,1.92633593]
[1765617227207,0.00480908,3120.4,3120.3,1.4778]
[1765617240423,3.2078,3121.0,3120.9,1.4693]
[1765617240723,3.2078,3121.0,3120.9,2.52376442]
[1765617242815,3.2078,3121.0,3120.9,1.4693]
[1765617243009,5.1142,3121.0,3120.9,0.6993]
[1765617243210,0.7506,3120.6,3120.5,1.8958]
[1765617244523,1.4581,3120.6,3120.5,1.8958]
[1765617244823,0.7506,3120.6,3120.5,1.8958]
[1765617246920,2.51256442,3120.6,3120.5,1.8958]
[1765617247122,2.51256442,3120.6,3120.5,1.4693]
[1765617247425,2.5122206,3120.6,3120.5,0.6993]
[1765617247617,2.5122206,3120.6,3120.5,1.4693]
[1765617247819,1.9064,3120.5,3120.4,0.6993]
[1765617248117,1.9064,3120.5,3120.4,1.4693]
[1765617249619,1.9064,3120.5,3120.4,0.6993]
[1765617251520,1.9064,3120.5,3120.4,1.4693]
[1765617251824,1.9064,3120.5,3120.4,0.6993]
[1765617255030,1.9064,3120.5,3120.4,1.4693]
[1765617256627,1.9064,3120.5,3120.4,0.6993]
[1765617257335,0.7506,3120.1,3120.0,5.28587593]
[1765617260628,1.4581,3120.1,3120.0,5.28587593]
[1765617262630,1.4581,3120.1,3120.0,5.12563593]
[1765617263837,2.51229495,3120.1,3120.0,4.68563593]
[1765617269640,3.5664899,3120.1,3120.0,0.00853593]
[1765617269842,1.4886,3119.2,3119.1,4.6783]
[1765617270139,2.54279495,3119.2,3119.1,4.6783]
[1765617270735,2.54667121,3119.2,3119.1,4.68227263]
[1765617271133,1.49247626,3119.2,3119.1,4.68227263]
[1765617271333,0.76067626,3119.2,3119.1,4.68227263]
[1765617272138,1.49247626,3119.2,3119.1,4.68227263]
[1765617273036,2.54667121,3119.2,3119.1,4.68227263]
[1765617273241,1.49247626,3119.2,3119.1,4.68227263]
[1765617273541,2.54667121,3119.2,3119.1,4.68227263]
[1765617274942,2.54667121,3119.2,3119.1,3.96187263]
[1765617275340,2.54667121,3119.2,3119.1,4.68227263]
[1765617275945,2.54667121,3119.2,3119.1,3.96187263]
[1765617277141,2.54667121,3119.2,3119.1,3.21177263]
[1765617277646,2.54667121,3119.2,3119.1,4.68227263]
[1765617281349,2.54667121,3119.2,3119.1,3.96187263]
[1765617282450,2.54667121,3119.2,3119.1,4.68227263]
[1765617283153,2.54772439,3119.2,3119.1,3.21177263]
[1765617283352,2.54772439,3119.2,3119.1,3.96187263]
[1765617284551,2.54772439,3119.2,3119.1,0.75407263]
[1765617285054,3.60297252,3119.2,3119.1,0.00397263]
[1765617285653,2.54772439,3119.2,3119.1,0.00397263]
[1765617285854,2.54772439,3119.2,3119.1,0.75407263]
[1765617286156,2.54772439,3119.2,3119.1,1.47447263]
[1765617290157,1.49247626,3119.2,3119.1,1.47447263]
[1765617290357,2.54772439,3119.2,3119.1,1.47447263]
[1765617293152,1.49247626,3119.2,3119.1,1.47447263]
[1765617293358,2.54772439,3119.2,3119.1,1.47447263]
[1765617294858,1.81592439,3119.2,3119.1,1.47447263]
[1765617295061,2.58192439,3119.2,3119.1,1.47447263]
[1765617295762,1.81592439,3119.2,3119.1,1.47447263]
[1765617296155,2.58192439,3119.2,3119.1,1.47447263]
[1765617296656,1.81592439,3119.2,3119.1,1.47447263]
[1765617297149,2.58192439,3119.2,3119.1,1.47447263]
[1765617297562,0.00387626,3119.2,3119.1,1.47447263]
[1765617301060,0.70797626,3119.2,3119.1,0.75407263]
[1765617301266,1.47397626,3119.2,3119.1,1.48397263]
[1765617301565,0.70797626,3119.2,3119.1,1.48397263]
[1765617301865,0.00387626,3119.2,3119.1,1.48397263]
[1765617302065,0.70797626,3119.2,3119.1,1.48397263]
[1765617303666,0.00387626,3119.2,3119.1,1.48397263]
[1765617304968,0.70797626,3119.2,3119.1,1.48397263]
[1765617306581,1.47397626,3119.2,3119.1,0.00397263]
[1765617307276,1.47397626,3119.2,3119.1,0.70417263]
[1765617309181,1.47397626,3119.2,3119.1,1.43407263]
[1765617309477,0.70797626,3119.2,3119.1,1.43407263]
[1765617309976,1.76301135,3119.2,3119.1,1.43407263]
[1765617310482,0.00387626,3119.2,3119.1,1.43407263]
[1765617314882,0.00387626,3119.2,3119.1,0.00397263]
[1765617314883,3.58404644,3119.2,3119.1,0.00397263]
[1765617320382,1.4052,3118.9,3118.8,0.00480908]
[1765617320583,2.46082619,3118.9,3118.8,0.00480908]
[1765617321385,2.46082619,3118.9,3118.8,0.00865758]
[1765617321983,3.51645238,3118.9,3118.8,0.00865758]
[1765617322187,6.72425238,3118.9,3118.8,0.00865758]
[1765617323282,1.4288,3118.1,3118.0,1.9628]
[1765617323682,2.48442619,3118.1,3118.0,1.9628]
[1765617324276,2.48442619,3118.1,3118.0,1.96513417]
[1765617324582,2.48442619,3118.1,3118.0,0.00233417]
[1765617324785,2.48442619,3118.1,3118.0,0.75763417]
[1765617324982,2.48442619,3118.1,3118.0,0.00233417]
[1765617326184,6.74785238,3118.1,3118.0,0.00233417]
[1765617327089,1.5211,3117.8,3117.7,0.00480908]
[1765617327288,3.63235238,3117.8,3117.7,0.00480908]
[1765617327685,2.57672619,3117.1,3117.0,1.9394]
[1765617327891,3.63235238,3117.1,3117.0,1.9394]
[1765617328189,2.57672619,3117.1,3117.0,0.00405388]
[1765617328390,3.63235238,3117.1,3117.0,0.00405388]
[1765617328589,2.57672619,3117.1,3117.0,0.75935388]
[1765617328792,2.57672619,3117.1,3117.0,1.49605388]
[1765617329390,2.57672619,3117.1,3117.0,0.75935388]
[1765617329794,2.57672619,3117.1,3117.0,1.49605388]
[1765617330694,3.63235238,3117.1,3117.0,1.49605388]
[1765617330991,3.63235238,3117.1,3117.0,0.00405388]
[1765617331285,1.5211,3116.6,3116.5,3.9631]
[1765617331488,2.57672619,3116.6,3116.5,3.2078]
[1765617331694,1.5211,3116.2,3116.1,4.6998]
[1765617331888,2.57672619,3116.2,3116.1,4.6998]
[1765617332090,2.57672619,3116.2,3115.6,3.2078]
[1765617332292,0.7714,3115.7,3115.6,4.70596744]
[1765617332592,1.82702619,3115.7,3115.6,4.70596744]
[1765617333389,1.05562619,3115.7,3115.6,4.70596744]
[1765617334894,0.00272868,3116.2,3116.1,1.492]
[1765617335090,1.05835487,3116.2,3116.1,1.492]
[1765617335490,1.82975487,3116.2,3116.1,1.492]
[1765617335693,2.57945487,3116.2,3116.1,1.492]
[1765617337394,1.05835487,3116.2,3116.1,1.492]
[1765617338488,0.00272868,3116.2,3116.1,1.492]
[1765617343598,0.7714,3116.0,3115.9,4.6998]
[1765617343792,1.82702619,3116.0,3115.9,4.6998]
[1765617344001,2.57672619,3116.0,3115.9,4.6998]
[1765617344202,3.00902619,3116.0,3115.9,3.9631]
[1765617345399,1.5211,3115.7,3115.6,1.49816744]
[1765617345609,2.57672619,3115.7,3115.6,1.49816744]